[Event "LJ Slovak Open 2022"]
[Site "Liptovsky Jan"]
[Date "2022.06.25"]
[Round "5.5"]
[White "Jablonicky, Martin"]
[Black "Hurtuk, Radovan"]
[Result "1-0"]
[ECO "A35"]
[WhiteElo "2377"]
[BlackElo "2057"]
[Annotator "RC"]
[PlyCount "79"]
[EventDate "2022.06.23"]
[EventType "swiss"]
[EventCountry "SVK"]
[SourceTitle "playchess.com"]
[Source "ChessBase"]
[SourceQuality "1"]
[TimeControl "3600+30"]

1. Nf3 {[%emt 0:12:36]} c5 {[%emt 0:00:17]} 2. c4 {[%emt 0:00:10]} Nc6 {[%emt 0:00:16]} 3. Nc3 {[%emt 0:00:11]} g6 {[%emt 0:00:21]} 4. e3 {[%emt 0:00:57]} Bg7 {[%emt 0:00:09]} 5. d4 {[%emt 0:00:05]} cxd4 {[%emt 0:00:04]} 6. exd4 {[%emt 0:00:04]} Nf6 {[%emt 0:02:35]} 7. d5 {[%emt 0:00:12]} Nb8 {[%emt 0:00:26]} 8. Bd3 {[%emt 0:00:12]} d6 {[%emt 0:00:15]} 9. O-O {[%emt 0:00:25]} O-O {[%emt 0:00:16]} 10. h3 {[%emt 0:00:14]} Nbd7 {[%emt 0:01:53]} 11. Re1 {[%emt 0:00:05]} Re8 {[%emt 0:00:32]} 12. Be3 {[%emt 0:00:05]} Nc5 {[%emt 0:06:56]} 13. Bf1 {[%emt 0:00:02]} Nfe4 {[%emt 0:02:16]} 14. Nxe4 {[%emt 0:00:15]} Nxe4 {[%emt 0:00:07]} 15. Bd4 {[%emt 0:00:06]} Nf6 {[%emt 0:00:17]} 16. b4 {[%emt 0:01:53]} b6 {[%emt 0:01:08]} 17. Bd3 {[%emt 0:00:59]} e5 {[%emt 0:03:57]} 18. dxe6 {[%emt 0:00:13]} fxe6 {[%emt 0:00:44]} 19. Bc2 {[%emt 0:03:06]} Qc7 {[%emt 0:03:08]} 20. Bb3 {[%emt 0:00:07]} Kh8 {[%emt 0:03:44]} 21. Rc1 {[%emt 0:00:23]} e5 {[%emt 0:06:01]} 22. Ba1 {[%emt 0:00:01]} Nd7 {[%emt 0:03:51]} 23. Ng5 {[%emt 0:00:36]} Re7 {[%emt 0:05:03]} 24. Qd5 {[%emt 0:02:07]} Bb7 {[%emt 0:00:18]} 25. Nf7+ {[%emt 0:00:11]} Rxf7 {[%emt 0:00:04]} 26. Qxf7 {[%emt 0:00:16]} Rf8 {[%emt 0:03:54]} 27. Qe6 {[%emt 0:00:02]} Qc6 {[%emt 0:04:41]} 28. Qd5 {[%emt 0:00:13]} Qc7 {[%emt 0:00:23]} 29. Qd2 {[%emt 0:00:02]} Nf6 {[%emt 0:02:41]} 30. c5 {[%emt 0:01:39]} bxc5 {[%emt 0:00:06]} 31. bxc5 {[%emt 0:00:02]} dxc5 {[%emt 0:05:57]} 32. Bxe5 {[%emt 0:00:11]} Qc6 {[%emt 0:00:28]} 33. f3 {[%emt 0:00:06]} Bc8 {[%emt 0:01:11]} 34. Qd6 {[%emt 0:00:14]} Bb7 {[%emt 0:03:47]} 35. Qxc6 {[%emt 0:00:36]} Bxc6 {[%emt 0:00:06]} 36. Rxc5 {[%emt 0:00:04]} Bd7 {[%emt 0:00:39]} 37. Rc7 {[%emt 0:00:06]} Bf5 {[%emt 0:00:15]} 38. Ba1 {[%emt 0:00:21]} Re8 {[%emt 0:00:59]} 39. Rxe8+ {[%emt 0:00:29]} Nxe8 {[%emt 0:00:01]} 40. Bxg7+ {[%emt 0:00:07]} 1-0

[Event "LJ Slovak Open 2022"]
[Site "Liptovsky Jan"]
[Date "2022.06.25"]
[Round "5.6"]
[White "Varga, Lukas"]
[Black "Gollner, Martin"]
[Result "1-0"]
[ECO "B45"]
[WhiteElo "2136"]
[BlackElo "1585"]
[Annotator "NA RC"]
[PlyCount "95"]
[EventDate "2022.06.23"]
[EventType "swiss"]
[EventCountry "SVK"]
[SourceTitle "playchess.com"]
[Source "ChessBase"]
[SourceQuality "1"]
[TimeControl "3600+30"]

1. e4 {[%emt 0:00:53]} c5 {[%emt 0:00:08]} 2. Nf3 {[%emt 0:00:43]} e6 {[%emt 0:00:15]} 3. d4 {[%emt 0:00:12]} cxd4 {[%emt 0:00:08]} 4. Nxd4 {[%emt 0:00:02]} Nc6 {[%emt 0:00:16]} 5. Nc3 {[%emt 0:00:24]} Bc5 {[%emt 0:00:34]} 6. Ndb5 {[%emt 0:01:04]} Nf6 {[%emt 0:01:51]} 7. Nd6+ {[%emt 0:07:35]} Ke7 {[%emt 0:00:39]} 8. Bf4 {[%emt 0:01:20]} Qb6 {[%emt 0:09:31]} 9. Qd2 {[%emt 0:00:09]} Nh5 {[%emt 0:06:07]} 10. O-O-O {[%emt 0:03:58]} Nxf4 {[%emt 0:07:24]} 11. Qxf4 {[%emt 0:00:29]} f6 {[%emt 0:01:17]} 12. Na4 {[%emt 0:04:44]} Qb4 {[%emt 0:01:15]} 13. Nxc5 {[%emt 0:00:18]} Qxc5 {[%emt 0:00:03]} 14. Qg3 {[%emt 0:00:36]} g6 {[%emt 0:02:51]} 15. Kb1 {[%emt 0:06:36]} Nd4 {[%emt 0:06:31]} 16. c3 {[%emt 0:02:59]} Qxd6 {[%emt 0:00:26]} 17. Qxd6+ {[%emt 0:02:39]} Kxd6 {[%emt 0:00:02]} 18. Rxd4+ {[%emt 0:00:46]} Ke7 {[%emt 0:00:41]} 19. h4 {[%emt 0:01:32]} h5 {[%emt 0:02:24]} 20. Rh3 {[%emt 0:01:19]} d5 {[%emt 0:07:37]} 21. exd5 {[%emt 0:01:03]} e5 {[%emt 0:02:08]} 22. Re3 {[%emt 0:00:05]} Kd6 {[%emt 0:01:53]} 23. Rd2 {[%emt 0:01:00]} f5 {[%emt 0:02:50]} 24. c4 {[%emt 0:02:01]} e4 {[%emt 0:01:28]} 25. Rc3 {[%emt 0:04:06]} f4 {[%emt 0:04:28]} 26. Kc1 {[%emt 0:02:36]} Bf5 {[%emt 0:04:39]} 27. g3 {[%emt 0:02:53]} f3 {[%emt 0:02:19]} 28. c5+ {[%emt 0:02:12]} Kc7 {[%emt 0:00:55]} 29. Bb5 {[%emt 0:00:27]} a6 {[%emt 0:02:22]} 30. d6+ {[%emt 0:00:11]} Kd8 {[%emt 0:00:16]} 31. Bc4 {[%emt 0:02:39]} g5 {[%emt 0:01:39]} 32. Rd5 {[%emt 0:01:33]} gxh4 {[%emt 0:00:50]} 33. gxh4 {[%emt 0:00:08]} Bg6 {[%emt 0:00:30]} 34. Rg5 {[%emt 0:00:32]} Be8 {[%emt 0:00:28]} 35. Bd5 {[%emt 0:00:15]} Bc6 {[%emt 0:00:31]} 36. Re3 {[%emt 0:00:47]} Bxd5 {[%emt 0:00:38]} 37. Rxd5 {[%emt 0:00:08]} Re8 {[%emt 0:00:33]} 38. Kd2 {[%emt 0:00:19]} Kd7 {[%emt 0:00:07]} 39. Kc3 {[%emt 0:00:27]} Kc6 {[%emt 0:00:20]} 40. Kd4 {[%emt 0:00:47]} Rad8 {[%emt 0:00:57]} 41. Rxh5 {[%emt 0:00:21]} b6 {[%emt 0:00:15]} 42. b4 {[%emt 0:01:00]} a5 {[%emt 0:00:27]} 43. bxa5 {[%emt 0:00:42]} bxc5+ {[%emt 0:00:26]} 44. Rxc5+ {[%emt 0:00:07]} Kxd6 {[%emt 0:00:11]} 45. Rd5+ {[%emt 0:00:23]} Kc6 {[%emt 0:00:22]} 46. Rc3+ {[%emt 0:00:05]} Kb7 {[%emt 0:00:14]} 47. Rxd8 {[%emt 0:00:09]} Rxd8+ {[%emt 0:00:04]} 48. Kxe4 {[%emt 0:00:04]} 1-0

[Event "LJ Slovak Open 2022"]
[Site "Liptovsky Jan"]
[Date "2022.06.25"]
[Round "5.7"]
[White "Krestian, Darius"]
[Black "Bombek, Peter"]
[Result "1/2-1/2"]
[ECO "D36"]
[WhiteElo "1659"]
[BlackElo "2111"]
[Annotator "NA RC"]
[PlyCount "67"]
[EventDate "2022.06.23"]
[EventType "swiss"]
[EventCountry "SVK"]
[SourceTitle "playchess.com"]
[Source "ChessBase"]
[SourceQuality "1"]
[TimeControl "3600+30"]

1. d4 {[%emt 0:00:04]} d5 {[%emt 0:00:07]} 2. c4 {[%emt 0:00:15]} e6 {[%emt 0:00:15]} 3. Nc3 {[%emt 0:00:10]} Nf6 {[%emt 0:00:09]} 4. cxd5 {[%emt 0:00:09]} exd5 {[%emt 0:00:06]} 5. Bg5 {[%emt 0:00:21]} c6 {[%emt 0:00:31]} 6. Qc2 {[%emt 0:00:14]} Be7 {[%emt 0:01:07]} 7. e3 {[%emt 0:00:42]} Nbd7 {[%emt 0:00:17]} 8. Bd3 {[%emt 0:00:32]} h6 {[%emt 0:00:28]} 9. Bf4 {[%emt 0:00:21]} Nh5 {[%emt 0:00:55]} 10. Bg3 {[%emt 0:01:32]} Nxg3 {[%emt 0:00:59]} 11. hxg3 {[%emt 0:00:02]} Nf6 {[%emt 0:02:08]} 12. Nf3 {[%emt 0:00:35]} Qd6 {[%emt 0:02:16]} 13. Rb1 {[%emt 0:04:57]} O-O {[%emt 0:06:39]} 14. O-O {[%emt 0:01:14]} Re8 {[%emt 0:02:04]} 15. b4 {[%emt 0:02:11]} Be6 {[%emt 0:04:43]} 16. b5 {[%emt 0:05:15]} c5 {[%emt 0:00:36]} 17. dxc5 {[%emt 0:01:17]} Qxc5 {[%emt 0:00:07]} 18. Qb2 {[%emt 0:03:22]} Rec8 {[%emt 0:02:56]} 19. Rbc1 {[%emt 0:02:57]} Qa3 {[%emt 0:01:40]} 20. Qxa3 {[%emt 0:02:55]} Bxa3 {[%emt 0:00:06]} 21. Rc2 {[%emt 0:00:17]} Rc7 {[%emt 0:07:26]} 22. Nd4 {[%emt 0:04:34]} Bd7 {[%emt 0:06:07]} 23. Rb1 {[%emt 0:04:44]} Rac8 {[%emt 0:02:41]} 24. Rb3 {[%emt 0:01:27]} Bc5 {[%emt 0:00:52]} 25. Nce2 {[%emt 0:01:55]} Bb6 {[%emt 0:01:32]} 26. Rxc7 {[%emt 0:00:58]} Rxc7 {[%emt 0:00:07]} 27. f3 {[%emt 0:06:20]} Kf8 {[%emt 0:01:11]} 28. Kf2 {[%emt 0:01:01]} h5 {[%emt 0:01:36]} 29. a4 {[%emt 0:00:40]} Ba5 {[%emt 0:02:47]} 30. Rb1 {[%emt 0:02:09]} Ke7 {[%emt 0:01:03]} 31. Rc1 {[%emt 0:01:32]} Kd6 {[%emt 0:02:40]} 32. Rxc7 {[%emt 0:01:23]} Bxc7 {[%emt 0:00:32]} 33. Nb3 {[%emt 0:00:53]} a6 {[%emt 0:06:04]} 34. Ned4 {[%emt 0:01:00]} 1/2-1/2

[Event "LJ Slovak Open 2022"]
[Site "Liptovsky Jan"]
[Date "2022.06.25"]
[Round "5.8"]
[White "Janousek, Petr"]
[Black "Verba, Vladimir"]
[Result "1-0"]
[ECO "B11"]
[WhiteElo "2099"]
[BlackElo "1786"]
[Annotator "NA RC"]
[PlyCount "51"]
[EventDate "2022.06.23"]
[EventType "swiss"]
[EventCountry "SVK"]
[SourceTitle "playchess.com"]
[Source "ChessBase"]
[SourceQuality "1"]
[TimeControl "3600+30"]

1. e4 {[%emt 0:01:56]} c6 {[%emt 0:00:27]} 2. Nc3 {[%emt 0:00:44]} d5 {[%emt 0:00:11]} 3. Nf3 {[%emt 0:01:15]} Bg4 {[%emt 0:00:41]} 4. h3 {[%emt 0:00:47]} Bxf3 {[%emt 0:00:43]} 5. Qxf3 {[%emt 0:00:05]} e6 {[%emt 0:00:19]} 6. d3 {[%emt 0:00:07]} Nf6 {[%emt 0:00:33]} 7. Bd2 {[%emt 0:00:16]} Nbd7 {[%emt 0:03:48]} 8. g4 {[%emt 0:03:32]} Bc5 {[%emt 0:06:35]} 9. O-O-O {[%emt 0:04:07]} Qc7 {[%emt 0:06:05]} 10. g5 {[%emt 0:03:28]} Ne5 {[%emt 0:04:35]} 11. Qe2 {[%emt 0:03:09]} Nfd7 {[%emt 0:09:17]} 12. exd5 {[%emt 0:03:05]} cxd5 {[%emt 0:04:53]} 13. f4 {[%emt 0:01:10]} Nc6 {[%emt 0:04:19]} 14. Nxd5 {[%emt 0:07:09]} Qd6 {[%emt 0:01:46]} 15. Nc3 {[%emt 0:00:08]} Nd4 {[%emt 0:02:55]} 16. Qg4 {[%emt 0:01:00]} Rc8 {[%emt 0:02:52]} 17. Ne4 {[%emt 0:13:44]} Qa6 {[%emt 0:02:32]} 18. Bc3 {[%emt 0:01:41]} Qxa2 {[%emt 0:07:46]} 19. Nxc5 {[%emt 0:01:46]} Nxc5 {[%emt 0:00:41]} 20. Kd2 {[%emt 0:03:02]} Nf5 {[%emt 0:04:07]} 21. Bg2 {[%emt 0:01:32]} O-O {[%emt 0:01:10]} 22. Ra1 {[%emt 0:00:46]} Nb3+ {[%emt 0:04:18]} 23. cxb3 {[%emt 0:00:12]} Qxb3 {[%emt 0:00:19]} 24. Ra3 {[%emt 0:06:03]} Qb6 {[%emt 0:00:53]} 25. Re1 {[%emt 0:02:15]} Rfd8 {[%emt 0:00:20]} 26. Qf3 {[%emt 0:03:08]} 1-0

[Event "LJ Slovak Open 2022"]
[Site "Liptovsky Jan"]
[Date "2022.06.25"]
[Round "5.9"]
[White "Ihnat, Marek"]
[Black "Brida, Lukas"]
[Result "1-0"]
[ECO "B33"]
[WhiteElo "2045"]
[BlackElo "1673"]
[Annotator "NA RC"]
[PlyCount "79"]
[EventDate "2022.06.23"]
[EventType "swiss"]
[EventCountry "SVK"]
[SourceTitle "playchess.com"]
[Source "ChessBase"]
[SourceQuality "1"]
[TimeControl "3600+30"]

1. e4 {[%emt 0:00:56]} c5 {[%emt 0:00:09]} 2. Nf3 {[%emt 0:00:08]} Nc6 {[%emt 0:00:10]} 3. d4 {[%emt 0:00:05]} cxd4 {[%emt 0:00:08]} 4. Nxd4 {[%emt 0:00:06]} Nf6 {[%emt 0:00:06]} 5. Nc3 {[%emt 0:00:04]} e5 {[%emt 0:00:16]} 6. Ndb5 {[%emt 0:00:04]} d6 {[%emt 0:00:11]} 7. Bg5 {[%emt 0:00:07]} a6 {[%emt 0:00:08]} 8. Na3 {[%emt 0:00:07]} b5 {[%emt 0:00:15]} 9. Nd5 {[%emt 0:00:07]} Be7 {[%emt 0:00:15]} 10. Bxf6 {[%emt 0:00:15]} Bxf6 {[%emt 0:00:12]} 11. c3 {[%emt 0:00:05]} O-O {[%emt 0:00:21]} 12. Nc2 {[%emt 0:00:05]} Rb8 {[%emt 0:00:09]} 13. h4 {[%emt 0:00:31]} g6 {[%emt 0:01:23]} 14. g3 {[%emt 0:00:00]} Bg7 {[%emt 0:01:00]} 15. h5 {[%emt 0:00:06]} Bb7 {[%emt 0:01:30]} 16. Nce3 {[%emt 0:01:43]} Ne7 {[%emt 0:00:15]} 17. hxg6 {[%emt 0:01:28]} hxg6 {[%emt 0:04:49]} 18. Bh3 {[%emt 0:06:06]} Nxd5 {[%emt 0:01:33]} 19. Nxd5 {[%emt 0:00:09]} Bxd5 {[%emt 0:00:28]} 20. Qxd5 {[%emt 0:00:19]} Qb6 {[%emt 0:02:03]} 21. Rd1 {[%emt 0:04:21]} Rfd8 {[%emt 0:01:37]} 22. O-O {[%emt 0:01:11]} Qc5 {[%emt 0:01:51]} 23. Bg4 {[%emt 0:10:00]} a5 {[%emt 0:06:29]} 24. Rd3 {[%emt 0:02:36]} Bf6 {[%emt 0:10:21]} 25. Rfd1 {[%emt 0:02:14]} Be7 {[%emt 0:01:25]} 26. Be2 {[%emt 0:03:17]} Kg7 {[%emt 0:03:30]} 27. Rf3 {[%emt 0:02:18]} Bf6 {[%emt 0:05:10]} 28. g4 {[%emt 0:06:01]} g5 {[%emt 0:05:38]} 29. Kg2 {[%emt 0:04:24]} b4 {[%emt 0:01:51]} 30. Qd2 {[%emt 0:03:21]} d5 {[%emt 0:01:13]} 31. exd5 {[%emt 0:02:12]} e4 {[%emt 0:00:20]} 32. Rf5 {[%emt 0:02:49]} Qd6 {[%emt 0:02:27]} 33. Rh1 {[%emt 0:08:23]} Rh8 {[%emt 0:01:08]} 34. Rh5 {[%emt 0:02:29]} Rxh5 {[%emt 0:03:08]} 35. gxh5 {[%emt 0:00:01]} bxc3 {[%emt 0:01:08]} 36. bxc3 {[%emt 0:00:23]} Rc8 {[%emt 0:05:36]} 37. c4 {[%emt 0:00:35]} Rb8 {[%emt 0:00:06]} 38. Qxa5 {[%emt 0:05:35]} Bd4 {[%emt 0:01:53]} 39. Rxg5+ {[%emt 0:01:25]} Kh6 {[%emt 0:00:27]} 40. Qd2 {[%emt 0:00:52]} 1-0

[Event "LJ Slovak Open 2022"]
[Site "Liptovsky Jan"]
[Date "2022.06.25"]
[Round "5.10"]
[White "Valko, Michal"]
[Black "Vilimek, Vit"]
[Result "0-1"]
[ECO "B28"]
[WhiteElo "1906"]
[BlackElo "1972"]
[Annotator "NA"]
[PlyCount "46"]
[EventDate "2022.06.23"]
[EventType "swiss"]
[EventCountry "SVK"]
[SourceTitle "playchess.com"]
[Source "ChessBase"]
[SourceQuality "1"]
[TimeControl "3600+30"]

1. e4 {[%emt 0:00:12]} c5 {[%emt 0:00:00]} 2. Nf3 {[%emt 0:00:09]} a6 {[%emt 0:00:31]} 3. c4 {[%emt 0:01:12]} Nc6 {[%emt 0:00:00]} 4. Nc3 {[%emt 0:00:08]} g6 {[%emt 0:00:00]} 5. d4 {[%emt 0:02:03]} cxd4 {[%emt 0:02:00]} 6. Nxd4 {[%emt 0:00:08]} e5 {[%emt 0:00:18]} 7. Nc2 {[%emt 0:01:37]} d6 {[%emt 0:05:25]} 8. Be2 {[%emt 0:00:47]} Bg7 {[%emt 0:00:27]} 9. O-O {[%emt 0:02:28]} Nge7 {[%emt 0:01:41]} 10. Bg4 {[%emt 0:00:48]} O-O {[%emt 0:00:42]} 11. Ne3 {[%emt 0:04:03]} f5 {[%emt 0:01:32]} 12. Bf3 {[%emt 0:00:31]} f4 {[%emt 0:06:31]} 13. Ned5 {[%emt 0:00:16]} Nd4 {[%emt 0:01:27]} 14. b4 {[%emt 0:04:28]} g5 {[%emt 0:08:59]} 15. Nxe7+ {[%emt 0:02:25]} Qxe7 {[%emt 0:01:19]} 16. Nd5 {[%emt 0:00:08]} Qd8 {[%emt 0:05:22]} 17. Bb2 {[%emt 0:01:50]} Nxf3+ {[%emt 0:01:40]} 18. gxf3 {[%emt 0:00:20]} Bh3 {[%emt 0:03:00]} 19. Re1 {[%emt 0:00:56]} g4 {[%emt 0:02:07]} 20. Kh1 {[%emt 0:00:58]} Qh4 {[%emt 0:00:13]} 21. Qe2 {[%emt 0:45:33]} Qh5 {[%emt 0:27:46]} 22. fxg4 {[%emt 0:00:30]} Bxg4 {[%emt 0:00:30]} 23. Qf1 {[%emt 0:00:30]} Bf3+ {[%emt 0:00:30]} 0-1

[Event "LJ Slovak Open 2022"]
[Site "Liptovsky Jan"]
[Date "2022.06.25"]
[Round "5.11"]
[White "Saravanan Durga"]
[Black "Spik, Peter"]
[Result "0-1"]
[ECO "D08"]
[WhiteElo "1660"]
[BlackElo "1969"]
[Annotator "NA RC"]
[PlyCount "140"]
[EventDate "2022.06.23"]
[EventType "swiss"]
[EventCountry "SVK"]
[SourceTitle "playchess.com"]
[Source "ChessBase"]
[SourceQuality "1"]
[TimeControl "3600+30"]

1. d4 {[%emt 0:00:03]} d5 {[%emt 0:00:13]} 2. c4 {[%emt 0:00:10]} e5 {[%emt 0:00:06]} 3. dxe5 {[%emt 0:00:38]} d4 {[%emt 0:00:07]} 4. Nf3 {[%emt 0:00:05]} Nc6 {[%emt 0:00:19]} 5. Nbd2 {[%emt 0:00:24]} Be6 {[%emt 0:00:46]} 6. a3 {[%emt 0:19:12]} a5 {[%emt 0:00:39]} 7. Nb3 {[%emt 0:00:48]} Bxc4 {[%emt 0:00:43]} 8. Nbxd4 {[%emt 0:00:07]} Nge7 {[%emt 0:03:39]} 9. Bg5 {[%emt 0:18:47]} Qd5 {[%emt 0:01:59]} 10. Nxc6 {[%emt 0:04:26]} Nxc6 {[%emt 0:01:01]} 11. e3 {[%emt 0:07:10]} Qb5 {[%emt 0:10:51]} 12. Bxc4 {[%emt 0:01:15]} Qxc4 {[%emt 0:00:15]} 13. Rc1 {[%emt 0:04:37]} Qb5 {[%emt 0:00:18]} 14. Qe2 {[%emt 0:00:08]} Qd5 {[%emt 0:08:49]} 15. Qc4 {[%emt 0:00:37]} Qxc4 {[%emt 0:02:16]} 16. Rxc4 {[%emt 0:00:02]} h6 {[%emt 0:00:35]} 17. Bh4 {[%emt 0:03:07]} Ra6 {[%emt 0:04:41]} 18. Ke2 {[%emt 0:01:16]} b5 {[%emt 0:00:16]} 19. Rc2 {[%emt 0:00:54]} b4 {[%emt 0:02:32]} 20. axb4 {[%emt 0:02:58]} Bxb4 {[%emt 0:01:40]} 21. Rhc1 {[%emt 0:00:05]} Kd7 {[%emt 0:00:13]} 22. Nd4 {[%emt 0:02:09]} Nxd4+ {[%emt 0:00:32]} 23. exd4 {[%emt 0:00:02]} c6 {[%emt 0:00:23]} 24. f4 {[%emt 0:00:49]} g5 {[%emt 0:01:48]} 25. Bg3 {[%emt 0:00:42]} gxf4 {[%emt 0:01:01]} 26. Bxf4 {[%emt 0:00:01]} h5 {[%emt 0:00:12]} 27. h4 {[%emt 0:01:00]} Rg8 {[%emt 0:00:15]} 28. g3 {[%emt 0:00:04]} Rg6 {[%emt 0:01:17]} 29. Rc4 {[%emt 0:00:36]} Ra7 {[%emt 0:02:56]} 30. Ra1 {[%emt 0:00:22]} Rb7 {[%emt 0:00:15]} 31. Rac1 {[%emt 0:00:57]} Rb5 {[%emt 0:00:41]} 32. R1c2 {[%emt 0:00:43]} Re6 {[%emt 0:00:47]} 33. Kf3 {[%emt 0:00:17]} f6 {[%emt 0:00:28]} 34. Ke4 {[%emt 0:01:18]} fxe5 {[%emt 0:02:22]} 35. dxe5 {[%emt 0:00:30]} Rd5 {[%emt 0:06:02]} 36. Rd4 {[%emt 0:00:30]} Rxd4+ {[%emt 0:01:08]} 37. Kxd4 {[%emt 0:00:01]} Rg6 {[%emt 0:01:52]} 38. Ke4 {[%emt 0:00:18]} c5 {[%emt 0:04:54]} 39. Kf5 {[%emt 0:00:10]} Rc6 {[%emt 0:00:57]} 40. Kg5 {[%emt 0:01:21]} Ke6 {[%emt 0:00:48]} 41. Kxh5 {[%emt 0:00:52]} c4 {[%emt 0:00:14]} 42. g4 {[%emt 0:01:04]} Rc8 {[%emt 0:01:26]} 43. g5 {[%emt 0:00:45]} Kf5 {[%emt 0:00:23]} 44. Kh6 {[%emt 0:00:26]} Rc6+ {[%emt 0:03:58]} 45. Kg7 {[%emt 0:00:16]} Kxf4 {[%emt 0:00:15]} 46. g6 {[%emt 0:00:50]} Kxe5 {[%emt 0:00:37]} 47. h5 {[%emt 0:00:26]} Rc7+ {[%emt 0:00:17]} 48. Kg8 {[%emt 0:00:25]} Kf6 {[%emt 0:00:51]} 49. Rf2+ {[%emt 0:00:29]} Kg5 {[%emt 0:00:15]} 50. g7 {[%emt 0:00:36]} Bd6 {[%emt 0:01:09]} 51. h6 {[%emt 0:00:29]} Kg6 {[%emt 0:00:40]} 52. Rg2+ {[%emt 0:00:37]} Kxh6 {[%emt 0:00:13]} 53. Rg1 {[%emt 0:00:31]} Be5 {[%emt 0:00:36]} 54. Rh1+ {[%emt 0:00:15]} Kg6 {[%emt 0:00:05]} 55. Rg1+ {[%emt 0:00:09]} Kf5 {[%emt 0:00:22]} 56. Rf1+ {[%emt 0:00:32]} Ke6 {[%emt 0:00:13]} 57. Re1 {[%emt 0:00:58]} Rxg7+ {[%emt 0:00:07]} 58. Kf8 {[%emt 0:00:04]} Rb7 {[%emt 0:00:12]} 59. Kg8 {[%emt 0:00:27]} Rxb2 {[%emt 0:00:14]} 60. Kh7 {[%emt 0:00:29]} c3 {[%emt 0:00:31]} 61. Rc1 {[%emt 0:00:26]} c2 {[%emt 0:00:18]} 62. Kg6 {[%emt 0:00:07]} Bf4 {[%emt 0:00:29]} 63. Re1+ {[%emt 0:00:12]} Kd5 {[%emt 0:00:10]} 64. Kf5 {[%emt 0:00:05]} Rb1 {[%emt 0:00:20]} 65. Rxb1 {[%emt 0:00:37]} cxb1=Q+ {[%emt 0:00:11]} 66. Kxf4 {[%emt 0:00:02]} Qe4+ {[%emt 0:00:37]} 67. Kg5 {[%emt 0:00:03]} Ke6 {[%emt 0:00:13]} 68. Kh5 {[%emt 0:00:03]} Qg2 {[%emt 0:00:13]} 69. Kh6 {[%emt 0:00:04]} Kf6 {[%emt 0:00:11]} 70. Kh7 {[%emt 0:00:02]} Qg7# {[%emt 0:00:12]} 0-1

[Event "LJ Slovak Open 2022"]
[Site "Liptovsky Jan"]
[Date "2022.06.25"]
[Round "5.12"]
[White "Podjavorinsky, Michal"]
[Black "Mirowska, Oliwia"]
[Result "1/2-1/2"]
[ECO "B23"]
[WhiteElo "1941"]
[BlackElo "1746"]
[Annotator "NA RC"]
[PlyCount "37"]
[EventDate "2022.06.23"]
[EventType "swiss"]
[EventCountry "SVK"]
[SourceTitle "playchess.com"]
[Source "ChessBase"]
[SourceQuality "1"]
[TimeControl "3600+30"]

1. e4 {[%emt 0:00:11]} c5 {[%emt 0:00:26]} 2. Nc3 {[%emt 0:00:08]} e6 {[%emt 0:00:30]} 3. g3 {[%emt 0:00:40]} d5 {[%emt 0:00:09]} 4. exd5 {[%emt 0:00:07]} exd5 {[%emt 0:00:05]} 5. d4 {[%emt 0:00:13]} cxd4 {[%emt 0:00:41]} 6. Qxd4 {[%emt 0:00:31]} Be6 {[%emt 0:00:10]} 7. Bf4 {[%emt 0:02:11]} Nc6 {[%emt 0:01:07]} 8. Qd2 {[%emt 0:02:23]} Nf6 {[%emt 0:02:45]} 9. Bg2 {[%emt 0:02:55]} Bb4 {[%emt 0:01:51]} 10. a3 {[%emt 0:00:55]} Bxc3 {[%emt 0:02:41]} 11. Qxc3 {[%emt 0:02:40]} O-O {[%emt 0:02:10]} 12. Ne2 {[%emt 0:03:59]} Bg4 {[%emt 0:02:48]} 13. f3 {[%emt 0:01:44]} Bf5 {[%emt 0:02:19]} 14. O-O {[%emt 0:03:34]} Re8 {[%emt 0:01:11]} 15. Rfe1 {[%emt 0:02:57]} Qb6+ {[%emt 0:02:16]} 16. Kh1 {[%emt 0:00:15]} Rac8 {[%emt 0:07:14]} 17. b4 {[%emt 0:07:11]} Qf2 {[%emt 0:12:20]} 18. Qd2 {[%emt 0:05:00]} a6 {[%emt 0:12:16]} 19. c3 {[%emt 0:11:04]} 1/2-1/2

[Event "LJ Slovak Open 2022"]
[Site "Liptovsky Jan"]
[Date "2022.06.25"]
[Round "5.13"]
[White "Lis, Maksymilian"]
[Black "Borsos, Bogdan"]
[Result "0-1"]
[ECO "E49"]
[WhiteElo "1511"]
[BlackElo "2200"]
[Annotator "RC"]
[PlyCount "96"]
[EventDate "2022.06.23"]
[EventType "swiss"]
[EventCountry "SVK"]
[SourceTitle "playchess.com"]
[Source "ChessBase"]
[SourceQuality "1"]
[TimeControl "3600+30"]

1. d4 {[%emt 0:00:22]} Nf6 {[%emt 0:02:24]} 2. c4 {[%emt 0:00:50]} e6 {[%emt 0:00:08]} 3. Nc3 {[%emt 0:00:06]} Bb4 {[%emt 0:00:06]} 4. f3 {[%emt 0:00:04]} d5 {[%emt 0:04:48]} 5. a3 {[%emt 0:00:08]} Bxc3+ {[%emt 0:00:39]} 6. bxc3 {[%emt 0:00:06]} c5 {[%emt 0:00:03]} 7. cxd5 {[%emt 0:00:06]} exd5 {[%emt 0:00:09]} 8. e3 {[%emt 0:00:12]} O-O {[%emt 0:00:15]} 9. Bd3 {[%emt 0:00:05]} b6 {[%emt 0:00:05]} 10. Qa4 {[%emt 0:02:07]} Bd7 {[%emt 0:03:21]} 11. Qd1 {[%emt 0:00:08]} Bc8 {[%emt 0:06:16]} 12. Qa4 {[%emt 0:02:19]} Qe8 {[%emt 0:02:36]} 13. Qxe8 {[%emt 0:00:14]} Rxe8 {[%emt 0:00:06]} 14. Ne2 {[%emt 0:00:48]} Ba6 {[%emt 0:00:14]} 15. Bc2 {[%emt 0:00:37]} Nc6 {[%emt 0:00:23]} 16. Ba4 {[%emt 0:04:28]} Rac8 {[%emt 0:01:59]} 17. Kf2 {[%emt 0:03:15]} Bxe2 {[%emt 0:06:34]} 18. Bxc6 {[%emt 0:00:43]} Rxc6 {[%emt 0:01:35]} 19. Kxe2 {[%emt 0:00:07]} Nd7 {[%emt 0:02:08]} 20. Bd2 {[%emt 0:01:26]} f5 {[%emt 0:00:14]} 21. Kd3 {[%emt 0:00:48]} Kf7 {[%emt 0:07:52]} 22. h3 {[%emt 0:02:28]} h5 {[%emt 0:01:00]} 23. Be1 {[%emt 0:01:56]} f4 {[%emt 0:06:27]} 24. Bf2 {[%emt 0:04:28]} cxd4 {[%emt 0:01:44]} 25. exd4 {[%emt 0:00:19]} Rec8 {[%emt 0:00:57]} 26. Be1 {[%emt 0:01:14]} Rc4 {[%emt 0:06:11]} 27. Bd2 {[%emt 0:01:27]} h4 {[%emt 0:01:39]} 28. Rhc1 {[%emt 0:01:01]} g5 {[%emt 0:00:06]} 29. Rcb1 {[%emt 0:02:18]} a6 {[%emt 0:00:42]} 30. Rb4 {[%emt 0:00:43]} R8c6 {[%emt 0:00:37]} 31. Rab1 {[%emt 0:04:07]} b5 {[%emt 0:01:23]} 32. a4 {[%emt 0:00:46]} bxa4 {[%emt 0:00:58]} 33. Ra1 {[%emt 0:00:14]} Rxb4 {[%emt 0:01:10]} 34. cxb4 {[%emt 0:00:07]} Nb6 {[%emt 0:00:05]} 35. Re1 {[%emt 0:03:09]} Nc4 {[%emt 0:01:36]} 36. Bc1 {[%emt 0:05:16]} Re6 {[%emt 0:01:29]} 37. Rd1 {[%emt 0:01:01]} a3 {[%emt 0:01:13]} 38. Rf1 {[%emt 0:02:13]} Ke7 {[%emt 0:00:17]} 39. Bd2 {[%emt 0:02:02]} Kd7 {[%emt 0:00:21]} 40. Ra1 {[%emt 0:01:00]} Kc6 {[%emt 0:00:29]} 41. Bc1 {[%emt 0:00:22]} Kb5 {[%emt 0:00:09]} 42. Kc3 {[%emt 0:00:30]} Ka4 {[%emt 0:01:42]} 43. Ra2 {[%emt 0:00:52]} Re1 {[%emt 0:01:02]} 44. Rc2 {[%emt 0:00:27]} Ne3 {[%emt 0:01:32]} 45. Bxe3 {[%emt 0:00:20]} Rxe3+ {[%emt 0:00:57]} 46. Kd2 {[%emt 0:00:06]} Kb3 {[%emt 0:00:07]} 47. Rc6 {[%emt 0:02:07]} a2 {[%emt 0:01:01]} 48. Rxa6 {[%emt 0:00:03]} Kb2 {[%emt 0:00:08]} 0-1